fUST/lending_fUST_20250115
["ID","MTS","AMOUNT","RATE_DAILY","PERIOD"]
[348920689,1736873447909,-500.0,0.00022191,3]
[348920691,1736873447919,-500.0,0.00022191,3]
[348920693,1736873447928,-151.0,0.00022191,7]
[348920695,1736873447938,-151.0,0.00022191,7]
[348920697,1736873447947,-500.0,0.00022191,3]
[348920699,1736873447957,-500.0,0.00022191,3]
[348920701,1736873447967,-151.0,0.00022191,7]
[348920703,1736873447976,-500.0,0.00022191,3]
[348920705,1736873447986,-3504.14,0.00022191,3]
[348920707,1736873447995,-500.0,0.00022191,3]
[348920709,1736873448005,-188.0,0.00022191,2]
[348920711,1736873448017,-500.0,0.00022191,3]
[348920713,1736873448027,-500.0,0.00022191,3]
[348920715,1736873448038,-500.0,0.00022191,3]
[348920717,1736873448048,-591.44,0.00022191,3]
[348920719,1736873448058,-500.0,0.00022191,3]
[348920721,1736873448068,-500.0,0.00022191,3]
[348920723,1736873448078,-500.0,0.00022191,3]
[348920725,1736873448087,-500.0,0.00022191,3]
[348920727,1736873448097,-151.0,0.00022191,7]
[348920729,1736873448107,-500.0,0.00022191,3]
[348920731,1736873448116,-500.0,0.00022191,3]
[348920733,1736873448126,-151.0,0.00022191,7]
[348920735,1736873448136,-151.0,0.00022191,7]
[348920737,1736873448146,-500.0,0.00022191,3]
[348920739,1736873448157,-192.403858,0.00022191,7]
[348920741,1736873448167,-192.403858,0.00022191,7]
[348920743,1736873448177,-500.0,0.00022191,3]
[348920745,1736873448187,-151.0,0.00022191,7]
[348920747,1736873448196,-500.0,0.00022191,3]
[348920749,1736873448208,-151.0,0.00022191,7]
[348920751,1736873448218,-500.0,0.00022191,3]
[348920753,1736873448227,-151.0,0.00022191,7]
[348920755,1736873448237,-500.0,0.00022191,3]
[348920757,1736873448246,-500.0,0.00022191,3]
[348920759,1736873448256,-645.226549,0.00022191,7]
[348920761,1736873448265,-500.0,0.00022191,3]
[348920763,1736873448275,-645.226549,0.00022191,7]
[348920765,1736873448284,-500.0,0.00022191,3]
[348920767,1736873448293,-500.0,0.00022191,3]
[348920769,1736873448303,-11951.31,0.00022191,3]
[348920771,1736873448313,-500.0,0.00022191,2]
[348920773,1736873448322,-514.93,0.00022191,3]
[348920775,1736873448331,-1900.34,0.00022191,3]
[348920777,1736873448341,-879.23,0.00022191,3]
[348920779,1736873448352,-4508.38,0.00022191,2]
[348920780,1736873448363,-573.36576732,0.00022191,3]
[348920783,1736873448376,-500.0,0.00022191,3]
[348920785,1736873448387,-721.12,0.00022191,3]
[348920787,1736873448397,-500.0,0.00022191,3]
[348920789,1736873448407,-1476.97,0.00022191,3]
[348920790,1736873448416,-623.88,0.00022191,3]
[348920793,1736873448428,-500.0,0.00022191,3]
[348920795,1736873448437,-615.04,0.00022191,3]
[348920797,1736873448447,-500.0,0.00022191,3]
[348920799,1736873448457,-500.0,0.00022191,3]
[348920801,1736873448467,-1845.38,0.00022191,3]
[348920803,1736873448476,-500.0,0.00022191,3]
[348920805,1736873448486,-500.0,0.00022191,3]
[348920807,1736873448495,-500.0,0.00022191,3]
[348920809,1736873448505,-17638.24,0.00022191,3]
[348920811,1736873448515,-500.0,0.00022191,3]
[348920813,1736873448525,-500.0,0.00022191,3]
[348920815,1736873448534,-500.0,0.00022191,3]
[348920817,1736873448545,-673.8,0.00022191,3]
[348920819,1736873448555,-1946.13,0.00022191,3]
[348920821,1736873448565,-500.0,0.00022191,3]
[348920823,1736873448575,-1112.19,0.00022191,3]
[348920825,1736873448585,-500.0,0.00022191,3]
[348920827,1736873448594,-1209.4,0.00022191,3]
[348920829,1736873448603,-500.0,0.00022191,3]
[348920831,1736873448613,-500.0,0.00022191,3]
[348920833,1736873448625,-676.54,0.00022191,3]
[348920835,1736873448635,-500.0,0.00022191,3]
[348920837,1736873448645,-560.25,0.00022191,3]
[348920839,1736873448654,-575.54,0.00022191,3]
[348920841,1736873448664,-500.0,0.00022191,3]
[348920843,1736873448674,-501.97,0.00022191,3]
[348920845,1736873448683,-500.0,0.00022191,3]
[348920847,1736873448695,-500.0,0.00022191,3]
[348920849,1736873448704,-500.0,0.00022191,3]
[348920851,1736873448713,-500.0,0.00022191,3]
[348920853,1736873448723,-500.0,0.00022191,3]
[348920854,1736873448732,-1347.16,0.00022191,3]
[348920855,1736873448742,-500.0,0.00022191,3]
[348920856,1736873448751,-500.0,0.00022191,3]
[348920857,1736873448761,-1134.25421233,0.00022213,2]
[348920858,1736873448770,-211.9532233,0.00022233,2]
[348920859,1736873448781,-150.0,0.0002231,2]
[348920861,1736873448791,-2170.42,0.00022327,3]
[348920864,1736873448801,-2170.42,0.00022327,3]
[348920866,1736873448811,-2170.42,0.00022327,3]
[348920868,1736873448820,-2170.42,0.00022327,3]
[348920869,1736873448830,-2170.64253846,0.00022327,3]
[348920872,1736873448839,-1134.25421233,0.00022328,2]
[348920874,1736873448849,-500.0,0.00022328,3]
[348920876,1736873448858,-151.0,0.00022328,7]
[348920878,1736873448869,-500.0,0.00022328,3]
[348920880,1736873448879,-500.0,0.00022328,3]
[348920882,1736873448888,-500.0,0.00022328,3]
[348920884,1736873448898,-500.0,0.00022328,3]
[348920886,1736873448908,-500.0,0.00022328,3]
[348920888,1736873448918,-500.0,0.00022328,3]
[348920890,1736873448927,-3504.14,0.00022328,3]
[348920892,1736873448937,-500.0,0.00022328,3]
[348920894,1736873448946,-500.0,0.00022328,3]
[348920896,1736873448956,-500.0,0.00022328,3]
[348920898,1736873448966,-500.0,0.00022328,3]
[348920900,1736873448975,-591.44,0.00022328,3]
[348920902,1736873448985,-500.0,0.00022328,3]
[348920904,1736873448994,-500.0,0.00022328,3]
[348920906,1736873449004,-500.0,0.00022328,3]
[348920908,1736873449015,-500.0,0.00022328,3]
[348920910,1736873449026,-500.0,0.00022328,3]
[348920912,1736873449036,-500.0,0.00022328,3]
[348920914,1736873449046,-500.0,0.00022328,3]
[348920916,1736873449055,-500.0,0.00022328,3]
[348920918,1736873449065,-500.0,0.00022328,3]
[348920920,1736873449075,-500.0,0.00022328,3]
[348920922,1736873449085,-365.19166822,0.00022328,3]
[348920925,1736873449094,-500.0,0.00022328,3]
[348920926,1736873449103,-500.0,0.00022328,3]
[348920928,1736873449113,-500.0,0.00022328,3]
[348920931,1736873449125,-151.0,0.00022328,7]
[348920932,1736873449134,-151.0,0.00022328,7]
[348920935,1736873449144,-500.0,0.00022328,3]
[348920937,1736873449154,-11951.31,0.00022328,3]
[348920939,1736873449163,-151.0,0.00022328,7]
[348920941,1736873449172,-500.0,0.00022328,2]
[348920942,1736873449182,-514.93,0.00022328,3]
[348920945,1736873449192,-1900.34,0.00022328,3]
[348920947,1736873449202,-151.0,0.00022328,7]
[348920949,1736873449211,-879.23,0.00022328,3]
[348920951,1736873449221,-4508.38,0.00022328,2]
[348920953,1736873449231,-500.0,0.00022328,3]
[348920955,1736873449240,-721.12,0.00022328,3]
[348920957,1736873449250,-500.0,0.00022328,3]
[348920959,1736873449260,-1476.97,0.00022328,3]
[348920961,1736873449269,-623.88,0.00022328,3]
[348920963,1736873449278,-500.0,0.00022328,3]
[348920965,1736873449288,-151.0,0.00022328,7]
[348920967,1736873449298,-615.04,0.00022328,3]
[348920969,1736873449308,-500.0,0.00022328,3]
[348920971,1736873449318,-500.0,0.00022328,3]
[348920973,1736873449330,-1845.38,0.00022328,3]
[348920975,1736873449339,-500.0,0.00022328,3]
[348920977,1736873449349,-500.0,0.00022328,3]
[348920979,1736873449359,-500.0,0.00022328,3]
[348920981,1736873449369,-17638.24,0.00022328,3]
[348920983,1736873449379,-151.0,0.00022328,7]
[348920985,1736873449389,-151.0,0.00022328,7]
[348920987,1736873449399,-500.0,0.00022328,3]
[348920989,1736873449408,-210.4,0.00022328,3]
[348920991,1736873449418,-500.0,0.00022328,3]
[348920993,1736873449427,-673.8,0.00022328,3]
[348920995,1736873449437,-151.0,0.00022328,7]
[348920997,1736873449447,-1946.13,0.00022328,3]
[348920999,1736873449456,-500.0,0.00022328,3]
[348921001,1736873449466,-1112.19,0.00022328,3]
[348921003,1736873449477,-500.0,0.00022328,3]
[348921005,1736873449487,-1209.4,0.00022328,3]
[348921007,1736873449496,-151.0,0.00022328,7]
[348921009,1736873449506,-500.0,0.00022328,3]
[348921011,1736873449517,-500.0,0.00022328,3]
[348921013,1736873449526,-676.54,0.00022328,3]
[348921015,1736873449536,-500.0,0.00022328,3]
[348921017,1736873449546,-560.25,0.00022328,3]
[348921019,1736873449556,-575.54,0.00022328,3]
[348921022,1736873449565,-500.0,0.00022328,3]
[348921024,1736873449576,-501.97,0.00022328,3]
[348921026,1736873449585,-500.0,0.00022328,3]
[348921028,1736873449594,-379.02845959,0.00022328,3]
[348921030,1736873449603,-500.0,0.00022328,3]
[348921032,1736873449613,-500.0,0.00022328,3]
[348921034,1736873449623,-500.0,0.00022328,3]
[348921036,1736873449632,-1347.16,0.00022328,3]
[348921038,1736873449642,-151.0,0.00022328,7]
[348921040,1736873449651,-500.0,0.00022328,3]
[348921042,1736873449660,-500.0,0.00022328,3]
[348921044,1736873449670,-1134.25421233,0.00022442,2]
[348921046,1736873449679,-1200.0,0.00022444,2]
[348921048,1736873449689,-500.0,0.00022465,3]
[348921050,1736873449702,-500.0,0.00022465,3]
[348921052,1736873449712,-500.0,0.00022465,3]
[348921054,1736873449721,-500.0,0.00022465,3]
[348921055,1736873449731,-500.0,0.00022465,3]
[348921058,1736873449741,-500.0,0.00022465,3]
[348921060,1736873449750,-3504.14,0.00022465,3]
[348921062,1736873449760,-500.0,0.00022465,3]
[348921064,1736873449770,-500.0,0.00022465,3]
[348921066,1736873449780,-500.0,0.00022465,3]
[348921068,1736873449789,-500.0,0.00022465,3]
[348921070,1736873449799,-591.44,0.00022465,3]
[348921072,1736873449808,-500.0,0.00022465,3]
[348921074,1736873449817,-500.0,0.00022465,3]
[348921076,1736873449826,-500.0,0.00022465,3]
[348921078,1736873449836,-500.0,0.00022465,3]
[348921080,1736873449845,-500.0,0.00022465,3]
[348921082,1736873449854,-500.0,0.00022465,3]
[348921084,1736873449864,-151.0,0.00022465,7]
[348921086,1736873449874,-151.0,0.00022465,7]
[348921088,1736873449883,-500.0,0.00022465,3]
[348921090,1736873449892,-500.0,0.00022465,3]
[348921092,1736873449901,-151.0,0.00022465,7]
[348921094,1736873449909,-500.0,0.00022465,3]
[348921096,1736873449918,-206.44207,0.00022465,7]
[348921098,1736873449927,-500.0,0.00022465,3]
[348921100,1736873449936,-500.0,0.00022465,3]
[348921102,1736873449946,-645.226549,0.00022465,7]
[348921104,1736873449955,-500.0,0.00022465,3]
[348921106,1736873449964,-645.226549,0.00022465,7]
[348921108,1736873449973,-500.0,0.00022465,3]
[348921110,1736873449983,-500.0,0.00022465,3]
[348921112,1736873449992,-11951.31,0.00022465,3]
[348921114,1736873450001,-500.0,0.00022465,2]
[348921116,1736873450010,-514.93,0.00022465,3]
[348921118,1736873450019,-1900.34,0.00022465,3]
[348921120,1736873450029,-879.23,0.00022465,3]
[348921122,1736873450038,-4508.38,0.00022465,2]
[348921124,1736873450048,-500.0,0.00022465,3]
[348921126,1736873450057,-721.12,0.00022465,3]
[348921128,1736873450067,-500.0,0.00022465,3]
[348921130,1736873450076,-944.36720713,0.00022465,3]
[348921153,1736873450283,-500.0,0.00022054,3]
[348921155,1736873450293,-500.0,0.00022191,3]
[348921157,1736873450302,-500.0,0.00022328,3]
[348921159,1736873450311,-395.0,0.00022395,2]
[348921161,1736873450321,-532.60279287,0.00022465,3]
[348921163,1736873450330,-623.88,0.00022465,3]
[348921165,1736873450339,-500.0,0.00022465,3]
[348921167,1736873450349,-615.04,0.00022465,3]
[348921169,1736873450358,-500.0,0.00022465,3]
[348921171,1736873450369,-500.0,0.00022465,3]
[348921174,1736873450386,-1845.38,0.00022465,3]
[348921175,1736873450395,-500.0,0.00022465,3]
[348921177,1736873450404,-500.0,0.00022465,3]
[348921179,1736873450413,-500.0,0.00022465,3]
[348921181,1736873450424,-17638.24,0.00022465,3]
[348921183,1736873450433,-500.0,0.00022465,3]
[348921185,1736873450441,-500.0,0.00022465,3]
[348921187,1736873450451,-673.8,0.00022465,3]
[348921190,1736873450460,-1946.13,0.00022465,3]
[348921191,1736873450469,-500.0,0.00022465,3]
[348921194,1736873450479,-1112.19,0.00022465,3]
[348921196,1736873450488,-500.0,0.00022465,3]
[348921198,1736873450497,-1209.4,0.00022465,3]
[348921200,1736873450506,-500.0,0.00022465,3]
[348921202,1736873450515,-500.0,0.00022465,3]
[348921203,1736873450524,-676.54,0.00022465,3]
[348921205,1736873450533,-500.0,0.00022465,3]
[348921207,1736873450543,-560.25,0.00022465,3]
[348921210,1736873450552,-575.54,0.00022465,3]
[348921211,1736873450561,-500.0,0.00022465,3]
[348921214,1736873450571,-501.97,0.00022465,3]
[348921216,1736873450580,-500.0,0.00022465,3]
[348921217,1736873450589,-500.0,0.00022465,3]
[348921220,1736873450599,-500.0,0.00022465,3]
[348921222,1736873450608,-500.0,0.00022465,3]
[348921224,1736873450620,-1347.16,0.00022465,3]
[348921226,1736873450630,-500.0,0.00022465,3]
[348921228,1736873450639,-500.0,0.00022465,3]
[348921230,1736873450648,-500.0,0.00022465,3]
[348921232,1736873450658,-2099.61664722,0.000225,3]
[348921234,1736873450667,-507.56440871,0.00022521,2]
[348921236,1736873450676,-1000.0,0.00022521,2]
[348921238,1736873450685,-1134.25421233,0.00022557,2]
[348921240,1736873450697,-151.0,0.00022593,7]
[348921242,1736873450706,-168.308691,0.00022601,7]
[348921244,1736873450715,-500.0,0.00022602,3]
[348921246,1736873450724,-151.0,0.00022602,7]
[348921248,1736873450735,-500.0,0.00022602,3]
[348921250,1736873450744,-500.0,0.00022602,3]
[348921252,1736873450753,-151.0,0.00022602,7]
[348921254,1736873450762,-151.0,0.00022602,7]
[348921256,1736873450774,-500.0,0.00022602,3]
[348921258,1736873450783,-632.14480675,0.00022602,3]
[348921260,1736873450793,-500.0,0.00022602,3]
[348921262,1736873450802,-3504.14,0.00022602,3]
[348921264,1736873450811,-500.0,0.00022602,3]
[348921266,1736873450821,-500.0,0.00022602,3]
[348921268,1736873450831,-500.0,0.00022602,3]
[348921270,1736873450840,-500.0,0.00022602,3]
[348921272,1736873450850,-591.44,0.00022602,3]
[348921274,1736873450860,-500.0,0.00022602,3]
[348921276,1736873450875,-500.0,0.00022602,3]
[348921278,1736873450885,-500.0,0.00022602,3]
[348921280,1736873450894,-500.0,0.00022602,3]
[348921282,1736873450904,-506.94,0.00022602,3]
[348921284,1736873450913,-500.0,0.00022602,3]
[348921286,1736873450922,-192.403858,0.00022602,7]
[348921288,1736873450932,-192.403858,0.00022602,7]
[348921289,1736873450941,-500.0,0.00022602,3]
[348921291,1736873450950,-504.19553901,0.00022602,3]
[348921293,1736873450959,-500.0,0.00022602,3]
[348921295,1736873450968,-500.0,0.00022602,3]
[348921297,1736873450978,-500.0,0.00022602,3]
[348921299,1736873450987,-500.0,0.00022602,3]
[348921301,1736873450997,-151.0,0.00022602,7]
[348921303,1736873451006,-500.0,0.00022602,3]
[348921305,1736873451017,-11951.31,0.00022602,3]
[348921307,1736873451027,-151.0,0.00022602,7]
[348921309,1736873451037,-500.0,0.00022602,2]
[348921311,1736873451047,-514.93,0.00022602,3]
[348921313,1736873451057,-1900.34,0.00022602,3]
[348921315,1736873451066,-260.957164,0.00022602,7]
[348921317,1736873451076,-879.23,0.00022602,3]
[348921319,1736873451086,-4508.38,0.00022602,2]
[348921321,1736873451096,-500.0,0.00022602,3]
[348921324,1736873451106,-721.12,0.00022602,3]
[348921325,1736873451115,-541.14784716,0.00022602,3]
[348921327,1736873451127,-1476.97,0.00022602,3]
[348921330,1736873451136,-623.88,0.00022602,3]
[348921332,1736873451146,-500.0,0.00022602,3]
[348921334,1736873451155,-615.04,0.00022602,3]
[348921336,1736873451165,-500.0,0.00022602,3]
[348921338,1736873451175,-500.0,0.00022602,3]
[348921339,1736873451184,-1845.38,0.00022602,3]
[348921341,1736873451194,-500.0,0.00022602,3]
[348921343,1736873451203,-500.0,0.00022602,3]
[348921345,1736873451213,-500.0,0.00022602,3]
[348921347,1736873451223,-17638.24,0.00022602,3]
[348921349,1736873451233,-151.0,0.00022602,7]
[348921351,1736873451243,-151.0,0.00022602,7]
[348921354,1736873451252,-500.0,0.00022602,3]
[348921356,1736873451262,-636.88515154,0.00022602,3]
[348921358,1736873451271,-673.8,0.00022602,3]
[348921360,1736873451281,-151.0,0.00022602,7]
[348921362,1736873451291,-1946.13,0.00022602,3]
[348921364,1736873451300,-500.0,0.00022602,3]
[348921366,1736873451310,-1112.19,0.00022602,3]
[348921368,1736873451319,-500.0,0.00022602,3]
[348921369,1736873451329,-1209.4,0.00022602,3]
[348921371,1736873451339,-151.626861,0.00022602,7]
[348921373,1736873451349,-500.0,0.00022602,3]
[348921375,1736873451359,-500.0,0.00022602,3]
[348921377,1736873451369,-676.54,0.00022602,3]
[348921380,1736873451379,-500.0,0.00022602,3]
[348921382,1736873451389,-560.25,0.00022602,3]
[348921384,1736873451398,-575.54,0.00022602,3]
[348921385,1736873451408,-412.68,0.00022602,3]
[348921387,1736873451417,-501.97,0.00022602,3]
[348921389,1736873451427,-500.0,0.00022602,3]
[348921391,1736873451437,-500.0,0.00022602,3]
[348921394,1736873451446,-500.0,0.00022602,3]
[348921396,1736873451456,-1347.16,0.00022602,3]
[348921398,1736873451466,-500.0,0.00022602,3]
[348921400,1736873451475,-151.0,0.00022602,7]
[348921402,1736873451484,-500.0,0.00022602,3]
[348921404,1736873451494,-500.0,0.00022602,3]
[348921406,1736873451503,-500.0,0.00022602,3]
[348921408,1736873451512,-1001.97186633,0.00022621,2]
[348921410,1736873451521,-1000.0,0.00022621,2]
[348921412,1736873451530,-1000.0,0.00022621,2]
[348921414,1736873451540,-1000.0,0.00022621,2]
[348921416,1736873451549,-1000.0,0.00022621,2]
[348921418,1736873451559,-1000.0,0.00022621,2]
[348921420,1736873451569,-2114.68584191,0.00022639,2]
[348921422,1736873451578,-160.0,0.00022651,3]
[348921423,1736873451587,-1134.25421233,0.00022671,2]
[348921425,1736873451596,-600.0,0.00022718,2]
[348921427,1736873451606,-501.35714145,0.00022739,3]
[348921430,1736873451615,-500.0,0.00022739,3]
[348921431,1736873451625,-500.0,0.00022739,3]
[348921433,1736873451635,-500.0,0.00022739,3]
[348921435,1736873451644,-500.0,0.00022739,3]
[348921437,1736873451654,-3504.14,0.00022739,3]
[348921440,1736873451664,-500.0,0.00022739,3]
[348921442,1736873451673,-500.0,0.00022739,3]
[348921444,1736873451682,-266.00557281,0.00022739,3]
[348921445,1736873451692,-500.0,0.00022739,3]
[348921448,1736873451705,-591.44,0.00022739,3]
[348921449,1736873451714,-500.0,0.00022739,3]
[348921451,1736873451724,-366.52200354,0.00022739,3]
[348921453,1736873451733,-585.5,0.00022739,3]
[348921455,1736873451743,-500.0,0.00022739,3]
[348921457,1736873451753,-500.0,0.00022739,3]
[348921459,1736873451762,-500.0,0.00022739,3]
[348921462,1736873451773,-500.0,0.00022739,3]
[348921464,1736873451784,-500.0,0.00022739,3]
[348921466,1736873451795,-645.226549,0.00022739,7]
[348921468,1736873451804,-500.0,0.00022739,3]
[348921470,1736873451814,-645.226549,0.00022739,7]
[348921472,1736873451824,-500.0,0.00022739,3]
[348921474,1736873451834,-11951.31,0.00022739,3]
[348921476,1736873451843,-500.0,0.00022739,2]
[348921478,1736873451853,-514.93,0.00022739,3]
[348921480,1736873451863,-1900.34,0.00022739,3]
[348921482,1736873451872,-879.23,0.00022739,3]
[348921483,1736873451882,-4508.38,0.00022739,2]
[348921485,1736873451891,-500.0,0.00022739,3]
[348921487,1736873451901,-721.12,0.00022739,3]
[348921489,1736873451911,-1476.97,0.00022739,3]
[348921491,1736873451920,-623.88,0.00022739,3]
[348921493,1736873451930,-615.04,0.00022739,3]
[348921495,1736873451940,-500.0,0.00022739,3]
[348921497,1736873451949,-500.0,0.00022739,3]
[348921499,1736873451958,-500.0,0.00022739,3]
[348921501,1736873451968,-1845.38,0.00022739,3]
[348921503,1736873451978,-511.59878103,0.00022739,3]
[348921505,1736873451988,-17638.24,0.00022739,3]
[348921507,1736873451997,-500.0,0.00022739,3]
[348921509,1736873452008,-673.8,0.00022739,3]
[348921511,1736873452018,-1946.13,0.00022739,3]
[348921513,1736873452028,-500.0,0.00022739,3]
[348921515,1736873452039,-1112.19,0.00022739,3]
[348921517,1736873452049,-1209.4,0.00022739,3]
[348921519,1736873452058,-500.0,0.00022739,3]
[348921522,1736873452068,-676.54,0.00022739,3]
[348921524,1736873452078,-500.0,0.00022739,3]
[348921526,1736873452088,-560.25,0.00022739,3]
[348921528,1736873452098,-575.54,0.00022739,3]
[348921530,1736873452107,-501.97,0.00022739,3]
[348921532,1736873452117,-500.0,0.00022739,3]
[348921534,1736873452127,-500.0,0.00022739,3]
[348921536,1736873452137,-500.0,0.00022739,3]
[348921538,1736873452146,-1347.16,0.00022739,3]
[348921540,1736873452156,-500.0,0.00022739,3]
[348921542,1736873452166,-500.0,0.00022739,3]
[348921544,1736873452176,-500.0,0.00022739,3]
[348921545,1736873452185,-500.0,0.00022739,3]
[348921547,1736873452195,-2114.68584191,0.00022745,2]
[348921549,1736873452204,-153.0,0.00022745,2]
[348921550,1736873452214,-153.0,0.00022745,2]
[348921552,1736873452224,-153.0,0.00022745,2]
[348921554,1736873452234,-153.0,0.00022745,2]
[348921556,1736873452244,-153.0,0.00022745,2]
[348921558,1736873452253,-153.0,0.00022745,2]
[348921560,1736873452262,-153.0,0.00022745,2]
[348921562,1736873452271,-153.0,0.00022745,2]
[348921564,1736873452281,-153.0,0.00022745,2]
[348921566,1736873452291,-153.0,0.00022745,2]
[348921568,1736873452300,-153.0,0.00022745,2]
[348921570,1736873452310,-153.0,0.00022745,2]
[348921572,1736873452320,-153.0,0.00022745,2]
[348921574,1736873452330,-153.0,0.00022745,2]
[348921576,1736873452339,-153.0,0.00022745,2]
[348921578,1736873452351,-153.0,0.00022745,2]
[348921580,1736873452361,-153.0,0.00022745,2]
[348921582,1736873452372,-153.0,0.00022745,2]
[348921584,1736873452381,-153.0,0.00022745,2]
[348921586,1736873452391,-1134.25421233,0.00022786,2]
[348921587,1736873452401,-2000.0,0.0002282,2]
[348921590,1736873452411,-2114.68584191,0.0002285,2]
[348921591,1736873452421,-20143.95107425,0.0002287,2]
[348921593,1736873452431,-151.0,0.0002287,7]
[348921595,1736873452441,-151.0,0.0002287,7]
[348921597,1736873452451,-151.0,0.0002287,7]
[348921599,1736873452460,-557.02,0.00022876,3]
[348921601,1736873452470,-500.0,0.00022876,3]
[348921603,1736873452480,-151.0,0.00022876,7]
[348921605,1736873452490,-151.0,0.00022876,7]
[348921607,1736873452500,-500.0,0.00022876,3]
[348921609,1736873452510,-500.0,0.00022876,3]
[348921611,1736873452520,-3504.14,0.00022876,3]
[348921613,1736873452529,-503.00101157,0.00022876,3]
[348921615,1736873452539,-500.0,0.00022876,3]
[348921617,1736873452549,-591.44,0.00022876,3]
[348921619,1736873452558,-500.0,0.00022876,3]
[348921621,1736873452567,-500.0,0.00022876,3]
[348921623,1736873452577,-151.0,0.00022876,7]
[348921625,1736873452587,-192.403858,0.00022876,7]
[348921627,1736873452597,-192.403858,0.00022876,7]
[348921629,1736873452607,-500.0,0.00022876,3]
[348921631,1736873452616,-534.24200281,0.00022876,3]
[348921633,1736873452628,-417.18134313,0.00022876,3]
[348921635,1736873452638,-261.45,0.00022876,3]
[348921637,1736873452649,-11951.31,0.00022876,3]
[348921639,1736873452658,-500.0,0.00022876,2]
[348921641,1736873452668,-514.93,0.00022876,3]
[348921643,1736873452678,-1900.34,0.00022876,3]
[348921645,1736873452688,-879.23,0.00022876,3]
[348921647,1736873452701,-4508.38,0.00022876,2]
[348921649,1736873452711,-500.0,0.00022876,3]
[348921651,1736873452721,-721.12,0.00022876,3]
[348921653,1736873452731,-1476.97,0.00022876,3]
[348921655,1736873452742,-623.88,0.00022876,3]
[348921657,1736873452752,-615.04,0.00022876,3]
[348921659,1736873452763,-500.0,0.00022876,3]
[348921661,1736873452775,-636.07,0.00022876,3]
[348921663,1736873452786,-1845.38,0.00022876,3]
[348921665,1736873452796,-17638.24,0.00022876,3]
[348921667,1736873452806,-151.862304,0.00022876,7]
[348921669,1736873452816,-500.0,0.00022876,3]
[348921671,1736873452826,-673.8,0.00022876,3]
[348921673,1736873452836,-1946.13,0.00022876,3]
[348921675,1736873452846,-500.0,0.00022876,3]
[348921677,1736873452856,-1112.19,0.00022876,3]
[348921679,1736873452867,-1209.4,0.00022876,3]
[348921691,1736873452986,-500.0,0.00022876,3]
[348921693,1736873452998,-676.54,0.00022876,3]
[348921694,1736873453007,-500.0,0.00022876,3]
[348921695,1736873453018,-560.25,0.00022876,3]
[348921696,1736873453028,-575.54,0.00022876,3]
[348921697,1736873453037,-501.97,0.00022876,3]
[348921698,1736873453047,-500.0,0.00022876,3]
[348921699,1736873453056,-500.0,0.00022876,3]
[348921700,1736873453066,-500.0,0.00022876,3]
[348921701,1736873453076,-151.0,0.00022876,7]
[348921702,1736873453085,-1347.16,0.00022876,3]
[348921703,1736873453095,-500.0,0.00022876,3]